[Event "Wch u20 girls"]
[Site "Kocaeli"]
[Date "2013.09.26"]
[Round "13.9"]
[White "Wang, Jue"]
[Black "Xiao, Yiyi"]
[Result "1-0"]
[ECO "B49"]
[WhiteElo "2392"]
[BlackElo "2163"]
[PlyCount "111"]
[EventDate "2013.09.??"]
[EventType "swiss"]
[EventRounds "13"]
[EventCountry "TUR"]
[Source "CBase R.Goldau"]
[SourceDate "2000.03.01"]
[TimeControl "40/5400+30:1800+30"]

1. e4 {[%emt 0:00:30]} c5 {[%emt 0:00:30]} 2. Nf3 {[%emt 0:00:00]} e6 {[%emt 0:
00:00]} 3. d4 {[%emt 0:00:00]} cxd4 {[%emt 0:00:00]} 4. Nxd4 {[%emt 0:00:00]}
Nc6 {[%emt 0:00:30]} 5. Nc3 {[%emt 0:00:00]} Qc7 {[%emt 0:00:00]} 6. Be2 {
[%emt 0:00:30]} a6 {[%emt 0:00:00]} 7. O-O {[%emt 0:00:30]} Nf6 {[%emt 0:00:30]
} 8. Be3 {[%emt 0:00:00]} Bb4 {[%emt 0:00:30]} 9. Na4 {[%emt 0:00:00]} Be7 {
[%emt 0:00:30]} 10. Nxc6 {[%emt 0:00:30]} bxc6 {[%emt 0:00:30]} 11. Nb6 {[%emt
0:00:00]} Rb8 {[%emt 0:00:30]} 12. Nxc8 {[%emt 0:00:00]} Qxc8 {[%emt 0:00:00]}
13. Bd4 {[%emt 0:00:30]} Nxe4 {[%emt 0:04:00]} 14. Bxg7 {[%emt 0:00:00]} Rg8 {
[%emt 0:00:30]} 15. Be5 {[%emt 0:00:00]} d6 {[%emt 0:00:30]} 16. Qd4 {[%emt 0:
12:30]} f5 {[%emt 0:06:30]} 17. Bh5+ {[%emt 0:00:30]} Kd7 {[%emt 0:03:30]} 18.
f3 {[%emt 0:05:30]} Nc5 {[%emt 0:07:30]} 19. Rad1 {[%emt 0:22:30]} Nb7 {[%emt
0:05:30]} 20. f4 {[%emt 0:09:30]} Kc7 {[%emt 0:07:30]} 21. Bf6 {[%emt 0:08:30]}
Qf8 {[%emt 0:03:30]} 22. Bxe7 {[%emt 0:01:30]} Qxe7 {[%emt 0:00:30]} 23. Rfe1 {
[%emt 0:01:30]} Nc5 {[%emt 0:12:30]} 24. Bf3 {[%emt 0:10:30]} d5 {[%emt 0:06:
30]} 25. c4 {[%emt 0:01:30]} Rb4 {[%emt 0:08:30]} 26. b3 {[%emt 0:00:30]} Ne4 {
[%emt 0:07:30]} 27. Kh1 {[%emt 0:05:30]} Qg7 {[%emt 0:06:32]} 28. Qa7+ {[%emt
0:00:30]} Rb7 {[%emt 0:00:13]} 29. Qe3 {[%emt 0:00:30]} Qc3 {[%emt 0:01:10]}
30. Qe2 {[%emt 0:00:00]} a5 {[%emt 0:02:26]} 31. cxd5 {[%emt 0:04:34]} exd5 {
[%emt 0:00:05]} 32. Rc1 {[%emt 0:00:06]} Qf6 {[%emt 0:02:28]} 33. Bxe4 {[%emt
0:03:27]} fxe4 {[%emt 0:00:05]} 34. Qd2 {[%emt 0:00:00]} Qf5 {[%emt 0:02:33]}
35. Qxa5+ {[%emt 0:00:15]} Kd7 {[%emt 0:00:03]} 36. Qc5 {[%emt 0:04:57]} Rg6 {
[%emt 0:00:19]} 37. Qe3 {[%emt 0:00:06]} Rf6 {[%emt 0:01:40]} 38. Rf1 {[%emt 0:
00:38]} Rd6 {[%emt 0:00:17]} 39. Rfd1 {[%emt 0:00:52]} Rf6 {[%emt 0:02:13]} 40.
Rf1 {[%emt 0:00:00]} Rd6 {[%emt 0:00:00]} 41. Rcd1 {[%emt 0:14:05]} h5 {[%emt
0:08:26]} 42. a4 {[%emt 0:00:30]} Rb4 {[%emt 0:03:30]} 43. Qc3 {[%emt 0:01:30]}
Rb8 {[%emt 0:00:00]} 44. a5 {[%emt 0:02:30]} Qf6 {[%emt 0:01:00]} 45. Qe3 {
[%emt 0:05:30]} Qb2 {[%emt 0:07:30]} 46. Rb1 {[%emt 0:00:33]} Qa2 {[%emt 0:02:
30]} 47. Qa7+ {[%emt 0:01:05]} Kc8 {[%emt 0:00:30]} 48. Qe7 {[%emt 0:00:26]}
Rd7 {[%emt 0:00:30]} 49. Qc5 {[%emt 0:05:10]} Kc7 {[%emt 0:00:30]} 50. Rbc1 {
[%emt 0:03:28]} Rd6 {[%emt 0:00:30]} 51. f5 {[%emt 0:01:43]} Qxb3 {[%emt 0:02:
30]} 52. f6 {[%emt 0:00:45]} e3 {[%emt 0:03:23]} 53. f7 {[%emt 0:00:31]} Rf8 {
[%emt 0:00:55]} 54. Rb1 {[%emt 0:01:44]} e2 {[%emt 0:00:28]} 55. Rfe1 {[%emt 0:
00:34]} Rxf7 {[%emt 0:01:23]} 56. Qa7+ {[%emt 0:00:12]} 1-0

[Event "Wch u20 girls"]
[Site "Kocaeli"]
[Date "2013.09.26"]
[Round "13.10"]
[White "Qiu, Mengjie"]
[Black "Pavlidou, Ekaterini"]
[Result "1/2-1/2"]
[ECO "B70"]
[WhiteElo "2091"]
[BlackElo "2209"]
[PlyCount "64"]
[EventDate "2013.09.??"]
[EventType "swiss"]
[EventRounds "13"]
[EventCountry "TUR"]
[Source "CBase R.Goldau"]
[SourceDate "2000.03.01"]
[TimeControl "40/5400+30:1800+30"]

1. e4 {[%emt 0:00:30]} c5 {[%emt 0:00:30]} 2. Nf3 {[%emt 0:00:00]} Nc6 {[%emt
0:00:00]} 3. Nc3 {[%emt 0:00:00]} Nf6 {[%emt 0:01:00]} 4. d4 {[%emt 0:00:30]}
cxd4 {[%emt 0:00:30]} 5. Nxd4 {[%emt 0:00:30]} d6 {[%emt 0:00:30]} 6. Bg5 {
[%emt 0:03:30]} g6 {[%emt 0:00:00]} 7. Qd2 {[%emt 0:04:30]} Bg7 {[%emt 0:01:00]
} 8. O-O-O {[%emt 0:04:30]} Nxe4 {[%emt 0:03:30]} 9. Nxc6 {[%emt 0:18:30]} Bxc3
{[%emt 0:00:30]} 10. bxc3 {[%emt 0:03:30]} bxc6 {[%emt 0:05:30]} 11. Qd4 {
[%emt 0:01:30]} Qa5 {[%emt 0:01:30]} 12. Qxh8+ {[%emt 0:08:30]} Kd7 {[%emt 0:
00:00]} 13. Bc4 {[%emt 0:03:30]} Qxg5+ {[%emt 0:03:00]} 14. Kb2 {[%emt 0:00:30]
} Rb8+ {[%emt 0:02:30]} 15. Ka1 {[%emt 0:02:30]} f6 {[%emt 0:07:30]} 16. Rhe1 {
[%emt 0:06:30]} Qe5 {[%emt 0:11:30]} 17. Re3 {[%emt 0:01:30]} Kc7 {[%emt 0:03:
30]} 18. Qxh7 {[%emt 0:01:30]} d5 {[%emt 0:03:30]} 19. Bb3 {[%emt 0:08:30]} f5
{[%emt 0:06:30]} 20. f3 {[%emt 0:07:30]} f4 {[%emt 0:00:30]} 21. Ree1 {[%emt 0:
01:30]} Qxc3+ {[%emt 0:06:30]} 22. Kb1 {[%emt 0:00:00]} Nd2+ {[%emt 0:00:30]}
23. Rxd2 {[%emt 0:02:08]} Qxd2 {[%emt 0:00:30]} 24. Rxe7+ {[%emt 0:00:22]} Kd6
{[%emt 0:00:30]} 25. Rxa7 {[%emt 0:04:10]} Qd1+ {[%emt 0:00:30]} 26. Kb2 {
[%emt 0:00:07]} Qd4+ {[%emt 0:00:30]} 27. Kb1 {[%emt 0:01:47]} Qd1+ {[%emt 0:
00:00]} 28. Kb2 {[%emt 0:00:03]} Qd4+ {[%emt 0:00:00]} 29. c3 {[%emt 0:02:49]}
Qf2+ {[%emt 0:02:30]} 30. Kc1 {[%emt 0:01:46]} Qg1+ {[%emt 0:00:30]} 31. Kb2 {
[%emt 0:01:44]} Qf2+ {[%emt 0:00:30]} 32. Ka3 {[%emt 0:01:53]} Qc5+ {[%emt 0:
00:30]} 1/2-1/2

[Event "Wch u20 girls"]
[Site "Kocaeli"]
[Date "2013.09.26"]
[Round "13.11"]
[White "Gevorgyan, Maria"]
[Black "Liu, Hongyan"]
[Result "1-0"]
[ECO "B42"]
[WhiteElo "2143"]
[BlackElo "2065"]
[PlyCount "117"]
[EventDate "2013.09.??"]
[EventType "swiss"]
[EventRounds "13"]
[EventCountry "TUR"]
[Source "CBase R.Goldau"]
[SourceDate "2000.03.01"]
[TimeControl "40/5400+30:1800+30"]

1. e4 {[%emt 0:00:30]} c5 {[%emt 0:00:30]} 2. Nf3 {[%emt 0:00:00]} e6 {[%emt 0:
00:00]} 3. d4 {[%emt 0:00:00]} cxd4 {[%emt 0:00:00]} 4. Nxd4 {[%emt 0:00:00]}
a6 {[%emt 0:00:30]} 5. Bd3 {[%emt 0:00:00]} Bc5 {[%emt 0:00:00]} 6. Nb3 {[%emt
0:00:30]} Ba7 {[%emt 0:00:00]} 7. Qe2 {[%emt 0:00:00]} Nc6 {[%emt 0:00:30]} 8.
Be3 {[%emt 0:00:00]} d6 {[%emt 0:01:30]} 9. Nc3 {[%emt 0:04:30]} Nf6 {[%emt 0:
00:30]} 10. O-O {[%emt 0:01:30]} O-O {[%emt 0:01:30]} 11. Rad1 {[%emt 0:00:30]}
b5 {[%emt 0:05:30]} 12. Kh1 {[%emt 0:10:30]} Ne5 {[%emt 0:07:30]} 13. Bxa7 {
[%emt 0:05:30]} Rxa7 {[%emt 0:00:30]} 14. f4 {[%emt 0:07:30]} Nxd3 {[%emt 0:01:
30]} 15. Rxd3 {[%emt 0:03:30]} b4 {[%emt 0:09:30]} 16. Nb1 {[%emt 0:07:30]} a5
{[%emt 0:03:30]} 17. Qe3 {[%emt 0:01:30]} Qc7 {[%emt 0:01:30]} 18. Rfd1 {[%emt
0:01:30]} d5 {[%emt 0:02:30]} 19. e5 {[%emt 0:03:30]} Ne4 {[%emt 0:15:30]} 20.
N1d2 {[%emt 0:02:30]} Ba6 {[%emt 0:06:30]} 21. Nxe4 {[%emt 0:14:30]} Bxd3 {
[%emt 0:03:30]} 22. Nd6 {[%emt 0:00:30]} Be4 {[%emt 0:13:30]} 23. Nd4 {[%emt 0:
15:30]} Ra6 {[%emt 0:02:30]} 24. Nxe4 {[%emt 0:02:46]} dxe4 {[%emt 0:00:30]}
25. Qxe4 {[%emt 0:00:01]} Rd8 {[%emt 0:05:31]} 26. Rd3 {[%emt 0:02:47]} Rd5 {
[%emt 0:05:24]} 27. h3 {[%emt 0:03:02]} h6 {[%emt 0:02:33]} 28. Kh2 {[%emt 0:
04:41]} Rb6 {[%emt 0:01:33]} 29. Rg3 {[%emt 0:00:52]} Qd7 {[%emt 0:02:26]} 30.
c3 {[%emt 0:01:03]} Rb8 {[%emt 0:00:25]} 31. f5 {[%emt 0:01:08]} Rxd4 {[%emt 0:
02:56]} 32. cxd4 {[%emt 0:01:00]} exf5 {[%emt 0:00:05]} 33. Qf4 {[%emt 0:00:01]
} Rb6 {[%emt 0:04:25]} 34. Rf3 {[%emt 0:02:46]} g6 {[%emt 0:00:48]} 35. Rd3 {
[%emt 0:00:30]} Qb5 {[%emt 0:01:29]} 36. Rd2 {[%emt 0:01:01]} Qd5 {[%emt 0:00:
25]} 37. Qxh6 {[%emt 0:01:33]} Rc6 {[%emt 0:00:05]} 38. Qe3 {[%emt 0:00:11]}
Rc1 {[%emt 0:00:39]} 39. a3 {[%emt 0:01:47]} b3 {[%emt 0:01:01]} 40. a4 {[%emt
0:00:00]} Qc4 {[%emt 0:00:00]} 41. d5 {[%emt 0:13:51]} Qf1 {[%emt 0:10:45]} 42.
Rf2 {[%emt 0:00:30]} Qg1+ {[%emt 0:01:30]} 43. Kg3 {[%emt 0:00:30]} Re1 {[%emt
0:09:45]} 44. Qf4 {[%emt 0:04:10]} Re4 {[%emt 0:01:36]} 45. Qd2 {[%emt 0:00:19]
} f4+ {[%emt 0:03:37]} 46. Rxf4 {[%emt 0:01:21]} Re3+ {[%emt 0:00:17]} 47. Rf3
{[%emt 0:00:46]} Rxf3+ {[%emt 0:02:38]} 48. Kxf3 {[%emt 0:00:32]} Qf1+ {[%emt
0:00:30]} 49. Ke3 {[%emt 0:00:41]} Qf5 {[%emt 0:02:35]} 50. Qc3 {[%emt 0:00:22]
} Qg5+ {[%emt 0:01:01]} 51. Kd4 {[%emt 0:00:25]} Qf4+ {[%emt 0:00:27]} 52. Kc5
{[%emt 0:01:35]} Qf2+ {[%emt 0:00:10]} 53. Qd4 {[%emt 0:03:10]} Qxg2 {[%emt 0:
01:22]} 54. d6 {[%emt 0:00:13]} Qb7 {[%emt 0:00:13]} 55. d7 {[%emt 0:00:56]}
Qa7+ {[%emt 0:00:21]} 56. Kc4 {[%emt 0:00:06]} Qc7+ {[%emt 0:01:02]} 57. Kxb3 {
[%emt 0:00:12]} Qd8 {[%emt 0:00:10]} 58. Qd6 {[%emt 0:00:13]} Kh7 {[%emt 0:00:
52]} 59. Ka2 {[%emt 0:02:15]} 1-0

[Event "Wch u20 girls"]
[Site "Kocaeli"]
[Date "2013.09.26"]
[Round "13.12"]
[White "Iwanow, Anna"]
[Black "Styazhkina, Anna"]
[Result "1-0"]
[ECO "C46"]
[WhiteElo "2230"]
[BlackElo "2241"]
[PlyCount "49"]
[EventDate "2013.09.??"]
[EventType "swiss"]
[EventRounds "13"]
[EventCountry "TUR"]
[Source "CBase R.Goldau"]
[SourceDate "2000.03.01"]
[TimeControl "40/5400+30:1800+30"]

1. e4 {[%emt 0:00:30]} e5 {[%emt 0:00:30]} 2. Nf3 {[%emt 0:00:00]} Nc6 {[%emt
0:00:00]} 3. d4 {[%emt 0:00:00]} exd4 {[%emt 0:00:00]} 4. Nxd4 {[%emt 0:00:00]}
g6 {[%emt 0:00:30]} 5. Nc3 {[%emt 0:00:00]} Bg7 {[%emt 0:00:00]} 6. Be3 {[%emt
0:00:30]} Nf6 {[%emt 0:00:00]} 7. Nxc6 {[%emt 0:04:30]} bxc6 {[%emt 0:00:30]}
8. e5 {[%emt 0:03:30]} Ng8 {[%emt 0:00:30]} 9. f4 {[%emt 0:04:30]} f6 {[%emt 0:
04:30]} 10. Bd3 {[%emt 0:23:30]} Ne7 {[%emt 0:04:30]} 11. f5 {[%emt 0:06:30]}
d5 {[%emt 0:03:30]} 12. fxg6 {[%emt 0:04:30]} hxg6 {[%emt 0:01:30]} 13. exf6 {
[%emt 0:02:30]} Bxf6 {[%emt 0:00:30]} 14. Qe2 {[%emt 0:03:30]} O-O {[%emt 0:13:
30]} 15. O-O-O {[%emt 0:02:30]} Bf5 {[%emt 0:02:30]} 16. g4 {[%emt 0:00:30]}
Bxd3 {[%emt 0:00:30]} 17. Qxd3 {[%emt 0:00:30]} Rb8 {[%emt 0:02:30]} 18. Bc5 {
[%emt 0:03:30]} Rf7 {[%emt 0:03:30]} 19. h4 {[%emt 0:03:30]} Nc8 {[%emt 0:05:
30]} 20. Rdf1 {[%emt 0:06:30]} Nd6 {[%emt 0:17:30]} 21. Qxg6+ {[%emt 0:00:30]}
Bg7 {[%emt 0:00:30]} 22. Rxf7 {[%emt 0:08:30]} Nxf7 {[%emt 0:00:30]} 23. Bd4 {
[%emt 0:02:32]} Qf8 {[%emt 0:00:30]} 24. Rf1 {[%emt 0:00:56]} c5 {[%emt 0:05:
30]} 25. Nxd5 {[%emt 0:01:46]} 1-0

[Event "Wch u20 girls"]
[Site "Kocaeli"]
[Date "2013.09.26"]
[Round "13.13"]
[White "Kuchava, Ana"]
[Black "Ibrahimova, Sabina"]
[Result "1-0"]
[ECO "A45"]
[WhiteElo "2092"]
[BlackElo "2168"]
[PlyCount "99"]
[EventDate "2013.09.??"]
[EventType "swiss"]
[EventRounds "13"]
[EventCountry "TUR"]
[Source "CBase R.Goldau"]
[SourceDate "2000.03.01"]
[TimeControl "40/5400+30:1800+30"]

1. d4 {[%emt 0:00:30]} Nf6 {[%emt 0:00:30]} 2. Bg5 {[%emt 0:00:30]} c6 {[%emt
0:00:00]} 3. Nf3 {[%emt 0:00:30]} Qb6 {[%emt 0:01:00]} 4. Qc1 {[%emt 0:01:30]}
Ne4 {[%emt 0:00:30]} 5. Bf4 {[%emt 0:00:30]} g5 {[%emt 0:00:30]} 6. Be3 {[%emt
0:08:30]} Bg7 {[%emt 0:03:30]} 7. c3 {[%emt 0:01:30]} h6 {[%emt 0:04:30]} 8.
Nfd2 {[%emt 0:07:30]} Nf6 {[%emt 0:05:30]} 9. f3 {[%emt 0:06:30]} d5 {[%emt 0:
05:30]} 10. Bf2 {[%emt 0:01:30]} Be6 {[%emt 0:19:30]} 11. e4 {[%emt 0:05:30]}
Nbd7 {[%emt 0:05:30]} 12. e5 {[%emt 0:04:30]} Nh5 {[%emt 0:00:30]} 13. g3 {
[%emt 0:01:30]} c5 {[%emt 0:13:30]} 14. Be2 {[%emt 0:04:30]} Rc8 {[%emt 0:19:
44]} 15. f4 {[%emt 0:11:30]} g4 {[%emt 0:05:28]} 16. h3 {[%emt 0:04:30]} cxd4 {
[%emt 0:01:21]} 17. Nb3 {[%emt 0:13:30]} Nxg3 {[%emt 0:05:49]} 18. Bxg3 {[%emt
0:00:30]} dxc3 {[%emt 0:00:04]} 19. bxc3 {[%emt 0:04:30]} d4 {[%emt 0:01:26]}
20. hxg4 {[%emt 0:03:32]} dxc3 {[%emt 0:02:56]} 21. Na3 {[%emt 0:04:42]} O-O {
[%emt 0:01:03]} 22. Bf2 {[%emt 0:03:17]} Qc6 {[%emt 0:00:12]} 23. O-O {[%emt 0:
00:34]} Qe4 {[%emt 0:01:53]} 24. Qe3 {[%emt 0:00:41]} Qg6 {[%emt 0:00:36]} 25.
Qg3 {[%emt 0:01:30]} Qe4 {[%emt 0:00:51]} 26. Qf3 {[%emt 0:02:32]} Qa4 {[%emt
0:00:12]} 27. Nc2 {[%emt 0:00:18]} Nb6 {[%emt 0:00:38]} 28. Bxb6 {[%emt 0:01:
13]} axb6 {[%emt 0:00:03]} 29. Nbd4 {[%emt 0:00:19]} Bd7 {[%emt 0:00:29]} 30.
Qxb7 {[%emt 0:01:47]} Bc6 {[%emt 0:01:04]} 31. Qxb6 {[%emt 0:02:56]} Be4 {
[%emt 0:00:14]} 32. Qb3 {[%emt 0:01:49]} Qa7 {[%emt 0:00:28]} 33. Rf2 {[%emt 0:
01:05]} Rfd8 {[%emt 0:00:41]} 34. Nb5 {[%emt 0:00:39]} Qc5 {[%emt 0:00:15]} 35.
Kf1 {[%emt 0:00:31]} Rd2 {[%emt 0:00:18]} 36. Nba3 {[%emt 0:00:30]} Bd3 {[%emt
0:00:41]} 37. Re1 {[%emt 0:00:08]} Rd8 {[%emt 0:00:35]} 38. Qa4 {[%emt 0:00:48]
} Qd5 {[%emt 0:00:50]} 39. Kg1 {[%emt 0:00:20]} Ra8 {[%emt 0:00:23]} 40. Qb4 {
[%emt 0:00:00]} Bxc2 {[%emt 0:00:00]} 41. Nxc2 {[%emt 0:13:51]} Qd7 {[%emt 0:
10:46]} 42. Qb3 {[%emt 0:06:33]} e6 {[%emt 0:04:14]} 43. Kg2 {[%emt 0:03:58]}
Bf8 {[%emt 0:02:40]} 44. Bf3 {[%emt 0:01:42]} Bc5 {[%emt 0:08:47]} 45. Rxd2 {
[%emt 0:01:11]} cxd2 {[%emt 0:01:15]} 46. Rd1 {[%emt 0:00:20]} Rd8 {[%emt 0:01:
33]} 47. Qc3 {[%emt 0:01:07]} Ba7 {[%emt 0:02:10]} 48. Nb4 {[%emt 0:00:23]} Qb5
{[%emt 0:03:16]} 49. Nc6 {[%emt 0:01:43]} Rd3 {[%emt 0:00:21]} 50. Nxa7 {[%emt
0:00:33]} 1-0

[Event "Wch u20 girls"]
[Site "Kocaeli"]
[Date "2013.09.26"]
[Round "13.14"]
[White "Sviridova, Vlada"]
[Black "Bezgodova, Maria"]
[Result "0-1"]
[ECO "C45"]
[WhiteElo "2063"]
[BlackElo "2187"]
[PlyCount "86"]
[EventDate "2013.09.??"]
[EventType "swiss"]
[EventRounds "13"]
[EventCountry "TUR"]
[Source "CBase R.Goldau"]
[SourceDate "2000.03.01"]
[TimeControl "40/5400+30:1800+30"]

1. e4 {[%emt 0:00:30]} e5 {[%emt 0:00:30]} 2. Nf3 {[%emt 0:00:00]} Nc6 {[%emt
0:00:00]} 3. d4 {[%emt 0:00:00]} exd4 {[%emt 0:00:00]} 4. Nxd4 {[%emt 0:00:00]}
Bc5 {[%emt 0:00:30]} 5. Nxc6 {[%emt 0:00:00]} Qf6 {[%emt 0:00:00]} 6. Qf3 {
[%emt 0:00:00]} dxc6 {[%emt 0:00:00]} 7. Bc4 {[%emt 0:00:00]} Ne7 {[%emt 0:02:
30]} 8. Nc3 {[%emt 0:03:30]} Ng6 {[%emt 0:01:30]} 9. h4 {[%emt 0:12:30]} Ne5 {
[%emt 0:01:30]} 10. Qxf6 {[%emt 0:00:30]} gxf6 {[%emt 0:00:00]} 11. Be2 {[%emt
0:02:30]} Rg8 {[%emt 0:00:00]} 12. Kf1 {[%emt 0:12:30]} Be6 {[%emt 0:02:30]}
13. f4 {[%emt 0:03:30]} Ng4 {[%emt 0:00:30]} 14. f5 {[%emt 0:01:30]} Bd7 {
[%emt 0:00:30]} 15. Nd1 {[%emt 0:05:30]} O-O-O {[%emt 0:00:30]} 16. Rh3 {[%emt
0:04:30]} Rde8 {[%emt 0:01:30]} 17. Bd3 {[%emt 0:01:30]} Bd6 {[%emt 0:07:30]}
18. Nf2 {[%emt 0:02:30]} c5 {[%emt 0:00:30]} 19. Bd2 {[%emt 0:08:30]} Bc6 {
[%emt 0:03:30]} 20. Re1 {[%emt 0:10:30]} Nxf2 {[%emt 0:01:30]} 21. Kxf2 {[%emt
0:00:00]} Rg4 {[%emt 0:00:30]} 22. Bc3 {[%emt 0:07:00]} Reg8 {[%emt 0:03:30]}
23. Bf1 {[%emt 0:02:30]} Bxe4 {[%emt 0:04:30]} 24. Rxe4 {[%emt 0:02:30]} Rxe4 {
[%emt 0:00:00]} 25. Bxf6 {[%emt 0:00:30]} c4 {[%emt 0:01:00]} 26. Bg5 {[%emt 0:
02:34]} Bc5+ {[%emt 0:03:30]} 27. Kf3 {[%emt 0:00:06]} Rge8 {[%emt 0:00:30]}
28. b3 {[%emt 0:03:54]} b5 {[%emt 0:03:30]} 29. bxc4 {[%emt 0:00:06]} bxc4 {
[%emt 0:00:30]} 30. h5 {[%emt 0:01:40]} f6 {[%emt 0:06:30]} 31. Bd2 {[%emt 0:
04:44]} c3 {[%emt 0:03:30]} 32. Ba6+ {[%emt 0:01:00]} Kd7 {[%emt 0:01:30]} 33.
Bc1 {[%emt 0:03:39]} Be3 {[%emt 0:01:30]} 34. Bxe3 {[%emt 0:01:53]} Rxe3+ {
[%emt 0:00:00]} 35. Kf2 {[%emt 0:00:07]} Rxh3 {[%emt 0:00:00]} 36. gxh3 {[%emt
0:00:02]} Re5 {[%emt 0:00:30]} 37. Bd3 {[%emt 0:00:12]} h6 {[%emt 0:00:30]} 38.
Kf3 {[%emt 0:00:40]} Kd6 {[%emt 0:01:30]} 39. Be4 {[%emt 0:02:09]} Kc5 {[%emt
0:00:30]} 40. Kf4 {[%emt 0:00:00]} Kd4 {[%emt 0:00:00]} 41. Bc6 {[%emt 0:01:14]
} Re2 {[%emt 0:00:00]} 42. Ba4 {[%emt 0:00:30]} Rf2+ {[%emt 0:00:30]} 43. Kg4 {
[%emt 0:02:30]} Ke5 {[%emt 0:00:30]} 0-1

[Event "Wch u20 girls"]
[Site "Kocaeli"]
[Date "2013.09.26"]
[Round "13.16"]
[White "Kurbonboeva, Sarvinoz"]
[Black "Imeeva, Aisa"]
[Result "1-0"]
[ECO "D61"]
[WhiteElo "2120"]
[BlackElo "2067"]
[PlyCount "53"]
[EventDate "2013.09.??"]
[EventType "swiss"]
[EventRounds "13"]
[EventCountry "TUR"]
[Source "CBase R.Goldau"]
[SourceDate "2000.03.01"]
[TimeControl "40/5400+30:1800+30"]

1. d4 {[%emt 0:00:30]} Nf6 {[%emt 0:00:30]} 2. c4 {[%emt 0:00:00]} e6 {[%emt 0:
00:00]} 3. Nf3 {[%emt 0:00:00]} d5 {[%emt 0:00:00]} 4. Nc3 {[%emt 0:00:00]} Be7
{[%emt 0:00:00]} 5. Bg5 {[%emt 0:00:00]} Nbd7 {[%emt 0:00:00]} 6. e3 {[%emt 0:
01:30]} O-O {[%emt 0:00:30]} 7. Qc2 {[%emt 0:00:30]} dxc4 {[%emt 0:00:30]} 8.
Bxc4 {[%emt 0:00:30]} b6 {[%emt 0:00:30]} 9. O-O {[%emt 0:02:30]} Bb7 {[%emt 0:
00:30]} 10. e4 {[%emt 0:01:30]} h6 {[%emt 0:02:30]} 11. Bf4 {[%emt 0:02:30]} a6
{[%emt 0:00:30]} 12. Qe2 {[%emt 0:07:30]} c5 {[%emt 0:02:30]} 13. d5 {[%emt 0:
04:30]} exd5 {[%emt 0:00:30]} 14. Nxd5 {[%emt 0:03:30]} Nxd5 {[%emt 0:04:30]}
15. Bxd5 {[%emt 0:06:30]} Qc8 {[%emt 0:02:30]} 16. Rad1 {[%emt 0:07:30]} b5 {
[%emt 0:04:30]} 17. h3 {[%emt 0:08:30]} Re8 {[%emt 0:01:30]} 18. Bxf7+ {[%emt
0:03:30]} Kxf7 {[%emt 0:00:00]} 19. Rxd7 {[%emt 0:00:30]} Kg8 {[%emt 0:01:00]}
20. Rc7 {[%emt 0:02:30]} Qe6 {[%emt 0:12:30]} 21. Rxb7 {[%emt 0:00:00]} Qxa2 {
[%emt 0:10:30]} 22. Rd1 {[%emt 0:03:00]} c4 {[%emt 0:01:30]} 23. Be5 {[%emt 0:
01:30]} b4 {[%emt 0:00:30]} 24. Qe3 {[%emt 0:02:30]} Bf8 {[%emt 0:11:30]} 25.
Rdd7 {[%emt 0:06:30]} Rxe5 {[%emt 0:02:30]} 26. Nxe5 {[%emt 0:00:00]} c3 {
[%emt 0:00:30]} 27. Rxg7+ {[%emt 0:04:00]} 1-0

[Event "Wch u20 girls"]
[Site "Kocaeli"]
[Date "2013.09.26"]
[Round "13.17"]
[White "Fronda, Jan Jodilyn"]
[Black "Monnisha, Gk"]
[Result "1/2-1/2"]
[ECO "C45"]
[WhiteElo "2038"]
[BlackElo "2094"]
[PlyCount "67"]
[EventDate "2013.09.??"]
[EventType "swiss"]
[EventRounds "13"]
[EventCountry "TUR"]
[Source "CBase R.Goldau"]
[SourceDate "2000.03.01"]
[TimeControl "40/5400+30:1800+30"]

1. e4 {[%emt 0:00:30]} e5 {[%emt 0:00:30]} 2. Nf3 {[%emt 0:00:00]} Nc6 {[%emt
0:00:30]} 3. d4 {[%emt 0:01:00]} exd4 {[%emt 0:00:30]} 4. Nxd4 {[%emt 0:00:30]}
Bc5 {[%emt 0:00:00]} 5. Nb3 {[%emt 0:00:00]} Bb6 {[%emt 0:00:00]} 6. Nc3 {
[%emt 0:00:00]} Nf6 {[%emt 0:00:30]} 7. Qe2 {[%emt 0:01:30]} O-O {[%emt 0:00:
00]} 8. Bg5 {[%emt 0:00:30]} h6 {[%emt 0:00:00]} 9. Bh4 {[%emt 0:00:30]} a5 {
[%emt 0:00:30]} 10. a4 {[%emt 0:00:30]} d6 {[%emt 0:00:30]} 11. O-O-O {[%emt 0:
03:30]} Be6 {[%emt 0:01:30]} 12. Kb1 {[%emt 0:06:30]} Re8 {[%emt 0:04:30]} 13.
f3 {[%emt 0:02:30]} Ne5 {[%emt 0:26:30]} 14. Qe1 {[%emt 0:12:30]} Ng6 {[%emt 0:
01:30]} 15. Bf2 {[%emt 0:00:30]} Bxf2 {[%emt 0:01:30]} 16. Qxf2 {[%emt 0:00:30]
} Bxb3 {[%emt 0:01:30]} 17. cxb3 {[%emt 0:00:30]} Nd7 {[%emt 0:00:30]} 18. Bd3
{[%emt 0:03:30]} Nge5 {[%emt 0:01:30]} 19. Bc2 {[%emt 0:00:30]} Nc6 {[%emt 0:
00:30]} 20. Nd5 {[%emt 0:02:30]} Nf6 {[%emt 0:01:30]} 21. Ne3 {[%emt 0:07:30]}
Nb4 {[%emt 0:04:30]} 22. Nf5 {[%emt 0:00:30]} Nd7 {[%emt 0:01:30]} 23. Qd4 {
[%emt 0:01:30]} Qf6 {[%emt 0:00:30]} 24. Qxf6 {[%emt 0:00:30]} Nxf6 {[%emt 0:
00:30]} 25. Rhe1 {[%emt 0:02:30]} Ra6 {[%emt 0:02:30]} 26. Bd3 {[%emt 0:00:30]}
Nxd3 {[%emt 0:00:30]} 27. Rxd3 {[%emt 0:02:30]} d5 {[%emt 0:21:30]} 28. e5 {
[%emt 0:05:30]} Rae6 {[%emt 0:00:30]} 29. f4 {[%emt 0:00:30]} c6 {[%emt 0:00:
30]} 30. Rg3 {[%emt 0:14:30]} Nh5 {[%emt 0:03:30]} 31. Rf3 {[%emt 0:00:00]} Nf6
{[%emt 0:01:30]} 32. Rg3 {[%emt 0:12:00]} Nh5 {[%emt 0:00:30]} 33. Rf3 {[%emt
0:09:49]} Nf6 {[%emt 0:00:00]} 34. Rg3 {[%emt 0:00:12]} 1/2-1/2